[Event "*** Titled Tuesday Blitz"]
[Site "Chess.com"]
[Date "2021.03.30"]
[Round "8"]
[White "korbul"]
[Black "Vaathi_Coming"]
[Result "0-1"]
[WhiteElo "2576"]
[BlackElo "2799"]
[TimeControl "180+1"]
[EndTime "11:25:47 PDT"]
[Termination "Vaathi_Coming won by resignation"]

1. d4 {[%clk 0:03:00.9]} 1... Nf6 {[%clk 0:02:59.7]} 2. Nf3 {[%clk 0:03:00.9]}
2... e6 {[%clk 0:02:59.9]} 3. Bf4 {[%clk 0:03:00.6]} 3... Bd6 {[%clk 0:02:59.5]}
4. Bxd6 {[%clk 0:02:59]} 4... cxd6 {[%clk 0:03:00.4]} 5. e3 {[%clk 0:02:59.2]}
5... O-O {[%clk 0:03:00.9]} 6. c4 {[%clk 0:02:58.9]} 6... b6 {[%clk 0:03:00.7]}
7. Nc3 {[%clk 0:02:58]} 7... Bb7 {[%clk 0:03:01]} 8. d5 {[%clk 0:02:57.9]} 8...
Na6 {[%clk 0:03:00.4]} 9. Bd3 {[%clk 0:02:56.6]} 9... Nc5 {[%clk 0:02:55.3]} 10.
Bc2 {[%clk 0:02:55.3]} 10... b5 {[%clk 0:02:53]} 11. b4 {[%clk 0:02:45.4]} 11...
Na6 {[%clk 0:02:51.7]} 12. a3 {[%clk 0:02:44.9]} 12... bxc4 {[%clk 0:02:51.4]}
13. e4 {[%clk 0:02:45]} 13... exd5 {[%clk 0:02:50.8]} 14. exd5 {[%clk
0:02:44.5]} 14... Re8+ {[%clk 0:02:50.8]} 15. Kf1 {[%clk 0:02:41.1]} 15... Nc7
{[%clk 0:02:49.4]} 16. Qd4 {[%clk 0:02:25.4]} 16... Ncxd5 {[%clk 0:02:48.1]} 17.
Nxd5 {[%clk 0:02:22.9]} 17... Bxd5 {[%clk 0:02:49]} 18. Ng5 {[%clk 0:02:06.4]}
18... h6 {[%clk 0:02:45.1]} 19. Nh3 {[%clk 0:02:05.6]} 19... Be4 {[%clk
0:02:33.9]} 20. Bxe4 {[%clk 0:01:58]} 20... Rxe4 {[%clk 0:02:33.5]} 21. Qxd6
{[%clk 0:01:56.8]} 21... c3 {[%clk 0:02:33.5]} 22. f3 {[%clk 0:01:52.7]} 22...
Re6 {[%clk 0:02:32.3]} 23. Qd3 {[%clk 0:01:50.1]} 23... Rc8 {[%clk 0:02:31.9]}
24. Rc1 {[%clk 0:01:43]} 24... Rec6 {[%clk 0:02:27.9]} 25. Kf2 {[%clk
0:01:35.8]} 25... Qb6+ {[%clk 0:02:27.5]} 26. Qe3 {[%clk 0:01:35.1]} 26... Ng4+
{[%clk 0:02:25.3]} 27. fxg4 {[%clk 0:01:33.5]} 27... Rf6+ {[%clk 0:02:25.9]} 28.
Nf4 {[%clk 0:01:29.3]} 28... Rxf4+ {[%clk 0:02:24.8]} 29. Ke2 {[%clk 0:01:29.4]}
29... Qa6+ {[%clk 0:02:18.4]} 30. Ke1 {[%clk 0:01:29.1]} 30... Rxg4 {[%clk
0:02:10.7]} 31. g3 {[%clk 0:01:18.8]} 31... Qxa3 {[%clk 0:02:10.1]} 32. Rf1
{[%clk 0:01:17]} 32... Qxb4 {[%clk 0:02:07.9]} 33. Kf2 {[%clk 0:01:14.7]} 33...
Qb6 {[%clk 0:02:06.7]} 0-1

[Event "*** Titled Tuesday Blitz"]
[Site "Chess.com"]
[Date "2021.03.30"]
[Round "8"]
[White "Baron_von_Koenig"]
[Black "Kale36"]
[Result "0-1"]
[WhiteElo "2549"]
[BlackElo "2419"]
[TimeControl "180+1"]
[EndTime "11:25:51 PDT"]
[Termination "Kale36 won by resignation"]

1. b3 {[%clk 0:02:31.2]} 1... e5 {[%clk 0:02:58]} 2. Bb2 {[%clk 0:02:31]} 2...
Nc6 {[%clk 0:02:58.4]} 3. Nf3 {[%clk 0:02:30.3]} 3... d6 {[%clk 0:02:49.2]} 4.
d4 {[%clk 0:02:29.4]} 4... g6 {[%clk 0:02:44.3]} 5. dxe5 {[%clk 0:02:27.6]} 5...
Bg7 {[%clk 0:02:44.7]} 6. Na3 {[%clk 0:02:27.8]} 6... Nge7 {[%clk 0:02:41.7]} 7.
Nc4 {[%clk 0:02:27.6]} 7... d5 {[%clk 0:02:24.3]} 8. Ne3 {[%clk 0:02:25.1]} 8...
O-O {[%clk 0:02:17.3]} 9. g3 {[%clk 0:02:24.5]} 9... Be6 {[%clk 0:02:05.1]} 10.
Bg2 {[%clk 0:02:23.6]} 10... Qd7 {[%clk 0:02:01.7]} 11. O-O {[%clk 0:02:22]}
11... Rad8 {[%clk 0:02:00.9]} 12. Nd4 {[%clk 0:02:02.6]} 12... Nxe5 {[%clk
0:01:46.1]} 13. Nxe6 {[%clk 0:02:01.9]} 13... fxe6 {[%clk 0:01:44.5]} 14. Kh1
{[%clk 0:01:57.2]} 14... c5 {[%clk 0:01:40.4]} 15. Bh3 {[%clk 0:01:55.4]} 15...
Nf5 {[%clk 0:01:37.5]} 16. Nxf5 {[%clk 0:01:54.2]} 16... exf5 {[%clk 0:01:35.1]}
17. f4 {[%clk 0:01:53.8]} 17... Nc6 {[%clk 0:01:29.1]} 18. Bxg7 {[%clk
0:01:53.3]} 18... Qxg7 {[%clk 0:01:30]} 19. Bg2 {[%clk 0:01:53.6]} 19... Qd4
{[%clk 0:01:23.1]} 20. Rf3 {[%clk 0:01:43.9]} 20... Qxd1+ {[%clk 0:01:16.7]} 21.
Rxd1 {[%clk 0:01:41.8]} 21... Nd4 {[%clk 0:01:17.6]} 22. Rxd4 {[%clk 0:01:36]}
22... cxd4 {[%clk 0:01:17.4]} 23. Rd3 {[%clk 0:01:36.3]} 23... Rfe8 {[%clk
0:01:16.8]} 24. Bxd5+ {[%clk 0:01:35.4]} 24... Rxd5 {[%clk 0:01:16]} 0-1

[Event "*** Titled Tuesday Blitz"]
[Site "Chess.com"]
[Date "2021.03.30"]
[Round "8"]
[White "Fandorine"]
[Black "Gloomy_Wanderer"]
[Result "1-0"]
[WhiteElo "2876"]
[BlackElo "2707"]
[TimeControl "180+1"]
[EndTime "11:26:02 PDT"]
[Termination "Fandorine won by resignation"]

1. Nf3 {[%clk 0:03:00.9]} 1... Nf6 {[%clk 0:02:59.9]} 2. c4 {[%clk 0:03:00.7]}
2... e6 {[%clk 0:03:00.1]} 3. g3 {[%clk 0:03:00.8]} 3... d5 {[%clk 0:03:00.4]}
4. b3 {[%clk 0:03:01]} 4... d4 {[%clk 0:02:57.2]} 5. Bg2 {[%clk 0:03:00]} 5...
c5 {[%clk 0:02:56.4]} 6. O-O {[%clk 0:03:00.3]} 6... Nc6 {[%clk 0:02:56.6]} 7.
e3 {[%clk 0:03:00.9]} 7... e5 {[%clk 0:02:56.8]} 8. exd4 {[%clk 0:02:58.2]} 8...
exd4 {[%clk 0:02:57.2]} 9. d3 {[%clk 0:02:53.6]} 9... Be7 {[%clk 0:02:55]} 10.
Na3 {[%clk 0:02:45.9]} 10... O-O {[%clk 0:02:53.3]} 11. Nc2 {[%clk 0:02:45.9]}
11... Bd6 {[%clk 0:02:51.2]} 12. Bg5 {[%clk 0:02:44.3]} 12... Bg4 {[%clk
0:02:47.2]} 13. h3 {[%clk 0:02:40]} 13... Bh5 {[%clk 0:02:47]} 14. Re1 {[%clk
0:02:28.7]} 14... h6 {[%clk 0:02:42.4]} 15. Bc1 {[%clk 0:02:20]} 15... Qc7
{[%clk 0:02:07.1]} 16. b4 {[%clk 0:02:04.4]} 16... Bxf3 {[%clk 0:01:27.1]} 17.
Qxf3 {[%clk 0:01:59.4]} 17... cxb4 {[%clk 0:01:20.9]} 18. Bxh6 {[%clk
0:01:53.7]} 18... Ne5 {[%clk 0:01:21]} 19. Qf5 {[%clk 0:01:48.7]} 19... Qd7
{[%clk 0:01:15.6]} 20. Rxe5 {[%clk 0:01:41.7]} 20... Bxe5 {[%clk 0:01:15.5]} 21.
Qxe5 {[%clk 0:01:42]} 1-0

[Event "*** Titled Tuesday Blitz"]
[Site "Chess.com"]
[Date "2021.03.30"]
[Round "8"]
[White "MergenKakabaev"]
[Black "Sweafty"]
[Result "0-1"]
[WhiteElo "2389"]
[BlackElo "2557"]
[TimeControl "180+1"]
[EndTime "11:26:05 PDT"]
[Termination "Sweafty won by resignation"]

1. e4 {[%clk 0:03:00.9]} 1... d6 {[%clk 0:02:56.6]} 2. d4 {[%clk 0:03:00.3]}
2... Nf6 {[%clk 0:02:56.8]} 3. Nc3 {[%clk 0:03:00.5]} 3... e5 {[%clk 0:02:57.5]}
4. dxe5 {[%clk 0:03:00.2]} 4... dxe5 {[%clk 0:02:58.4]} 5. Qxd8+ {[%clk
0:03:00.6]} 5... Kxd8 {[%clk 0:02:59.3]} 6. Bc4 {[%clk 0:03:01]} 6... Be6 {[%clk
0:02:59.7]} 7. Bxe6 {[%clk 0:03:00.5]} 7... fxe6 {[%clk 0:03:00.6]} 8. Be3
{[%clk 0:02:59.5]} 8... Bd6 {[%clk 0:03:00.8]} 9. f3 {[%clk 0:02:59.8]} 9... Ke7
{[%clk 0:03:00.4]} 10. O-O-O {[%clk 0:03:00.3]} 10... Nc6 {[%clk 0:03:01]} 11.
Nge2 {[%clk 0:03:00.2]} 11... a6 {[%clk 0:03:01.7]} 12. a4 {[%clk 0:02:59.2]}
12... Rhb8 {[%clk 0:03:00.1]} 13. h4 {[%clk 0:02:51.3]} 13... b5 {[%clk
0:02:58.1]} 14. h5 {[%clk 0:02:51.5]} 14... b4 {[%clk 0:02:47.8]} 15. Nb1 {[%clk
0:02:49.7]} 15... b3 {[%clk 0:02:48.3]} 16. c3 {[%clk 0:02:49.2]} 16... Na5
{[%clk 0:02:20]} 17. Nd2 {[%clk 0:02:48.1]} 17... Nd7 {[%clk 0:02:20.6]} 18. h6
{[%clk 0:02:41.7]} 18... g6 {[%clk 0:02:20.1]} 19. Ng1 {[%clk 0:02:39.8]} 19...
Nc5 {[%clk 0:02:12]} 20. Bxc5 {[%clk 0:02:30.5]} 20... Bxc5 {[%clk 0:02:12.9]}
21. Re1 {[%clk 0:02:30.9]} 21... Rd8 {[%clk 0:02:02.4]} 22. Nh3 {[%clk
0:02:30.5]} 22... Rd3 {[%clk 0:02:01.8]} 23. Ng5 {[%clk 0:02:23.6]} 23... Rad8
{[%clk 0:00:47]} 24. Re2 {[%clk 0:02:18.8]} 24... Be3 {[%clk 0:00:45.6]} 25.
Rxe3 {[%clk 0:02:18.2]} 25... Rxe3 {[%clk 0:00:46.5]} 26. Nxh7 {[%clk
0:02:17.4]} 26... Re2 {[%clk 0:00:44]} 27. Rd1 {[%clk 0:02:11.1]} 27... Rxg2
{[%clk 0:00:40.4]} 0-1

[Event "*** Titled Tuesday Blitz"]
[Site "Chess.com"]
[Date "2021.03.30"]
[Round "8"]
[White "Loy_Konstantin"]
[Black "biostatistician"]
[Result "0-1"]
[WhiteElo "2339"]
[BlackElo "2548"]
[TimeControl "180+1"]
[EndTime "11:26:17 PDT"]
[Termination "biostatistician won by resignation"]

1. e4 {[%clk 0:02:59.3]} 1... e6 {[%clk 0:02:59.5]} 2. d3 {[%clk 0:02:59.1]}
2... d5 {[%clk 0:03:00.4]} 3. Nd2 {[%clk 0:02:59.2]} 3... Nc6 {[%clk 0:03:00.4]}
4. Ngf3 {[%clk 0:02:58.7]} 4... Nf6 {[%clk 0:03:00.9]} 5. c3 {[%clk 0:02:57.3]}
5... a5 {[%clk 0:03:00.8]} 6. Be2 {[%clk 0:02:56.3]} 6... e5 {[%clk 0:03:00.2]}
7. O-O {[%clk 0:02:56.3]} 7... Bc5 {[%clk 0:03:00.6]} 8. h3 {[%clk 0:02:55.6]}
8... O-O {[%clk 0:03:00]} 9. Re1 {[%clk 0:02:55.4]} 9... Re8 {[%clk 0:02:59.6]}
10. Qc2 {[%clk 0:02:55.6]} 10... b6 {[%clk 0:02:46.2]} 11. Bf1 {[%clk
0:02:53.3]} 11... Bb7 {[%clk 0:02:43.1]} 12. b3 {[%clk 0:02:51.5]} 12... Nh5
{[%clk 0:02:38]} 13. exd5 {[%clk 0:02:30.1]} 13... Qxd5 {[%clk 0:02:37.6]} 14.
Ne4 {[%clk 0:02:30.6]} 14... Be7 {[%clk 0:02:33.1]} 15. d4 {[%clk 0:01:29.8]}
15... exd4 {[%clk 0:02:32.2]} 16. Bc4 {[%clk 0:01:30.1]} 16... Qf5 {[%clk
0:02:32.5]} 17. Bd3 {[%clk 0:01:15.9]} 17... Nf4 {[%clk 0:02:23.7]} 18. Bxf4
{[%clk 0:00:53.1]} 18... Qxf4 {[%clk 0:02:24.6]} 19. cxd4 {[%clk 0:00:50.9]}
19... Nb4 {[%clk 0:02:22.5]} 20. Qd1 {[%clk 0:00:44.1]} 20... Nxd3 {[%clk
0:02:20.7]} 21. Qxd3 {[%clk 0:00:43.6]} 21... Bb4 {[%clk 0:02:21.3]} 22. Nc3
{[%clk 0:00:40.6]} 22... Bxf3 {[%clk 0:02:16.9]} 23. gxf3 {[%clk 0:00:38.9]}
23... Bd6 {[%clk 0:02:16.4]} 24. Ne4 {[%clk 0:00:31]} 24... Qh2+ {[%clk
0:02:16.3]} 25. Kf1 {[%clk 0:00:31.5]} 25... Qxh3+ {[%clk 0:02:16.7]} 26. Ke2
{[%clk 0:00:28.4]} 26... f5 {[%clk 0:02:16.8]} 27. Rh1 {[%clk 0:00:28.9]} 27...
fxe4 {[%clk 0:02:14.7]} 0-1

[Event "*** Titled Tuesday Blitz"]
[Site "Chess.com"]
[Date "2021.03.30"]
[Round "8"]
[White "Raud100"]
[Black "LawrenceTrent"]
[Result "0-1"]
[WhiteElo "2401"]
[BlackElo "2562"]
[TimeControl "180+1"]
[EndTime "11:26:28 PDT"]
[Termination "LawrenceTrent won by resignation"]

1. d4 {[%clk 0:03:00.9]} 1... Nf6 {[%clk 0:02:59.8]} 2. c4 {[%clk 0:03:00.6]}
2... c5 {[%clk 0:02:59.9]} 3. d5 {[%clk 0:03:00.4]} 3... e6 {[%clk 0:03:00.4]}
4. Nc3 {[%clk 0:02:59.9]} 4... exd5 {[%clk 0:03:00.7]} 5. cxd5 {[%clk
0:03:00.8]} 5... d6 {[%clk 0:03:01]} 6. Nf3 {[%clk 0:03:01.1]} 6... g6 {[%clk
0:03:01.3]} 7. g3 {[%clk 0:03:01.7]} 7... Bg7 {[%clk 0:03:01.4]} 8. Bg2 {[%clk
0:03:02.6]} 8... O-O {[%clk 0:03:01.8]} 9. O-O {[%clk 0:03:03.5]} 9... Nbd7
{[%clk 0:03:00.9]} 10. Nd2 {[%clk 0:03:03.1]} 10... Re8 {[%clk 0:03:00.2]} 11.
h3 {[%clk 0:03:02.4]} 11... Ne5 {[%clk 0:02:57.8]} 12. f4 {[%clk 0:02:59.7]}
12... Nh5 {[%clk 0:02:57.6]} 13. fxe5 {[%clk 0:02:55.4]} 13... Bxe5 {[%clk
0:02:57.3]} 14. g4 {[%clk 0:02:39.7]} 14... Ng3 {[%clk 0:02:54.8]} 15. Nf3
{[%clk 0:02:28]} 15... Bxc3 {[%clk 0:02:53.4]} 16. bxc3 {[%clk 0:02:26.6]} 16...
Nxf1 {[%clk 0:02:46]} 17. Kxf1 {[%clk 0:02:13.7]} 17... b6 {[%clk 0:02:41.9]}
18. c4 {[%clk 0:01:58.9]} 18... Ba6 {[%clk 0:02:38.8]} 19. Qd3 {[%clk
0:01:55.4]} 19... b5 {[%clk 0:02:27.2]} 20. cxb5 {[%clk 0:01:52.4]} 20... c4
{[%clk 0:02:28.1]} 21. Qxc4 {[%clk 0:01:44.7]} 21... Rc8 {[%clk 0:02:27]} 22.
Qd3 {[%clk 0:01:39.2]} 22... Qf6 {[%clk 0:02:16.6]} 23. Rb1 {[%clk 0:01:30]}
23... Rc3 {[%clk 0:02:16.7]} 24. Qd4 {[%clk 0:01:14.5]} 24... Rxf3+ {[%clk
0:02:16.1]} 25. Bxf3 {[%clk 0:01:09.3]} 25... Qxd4 {[%clk 0:02:15.8]} 26. bxa6
{[%clk 0:01:09.4]} 26... Qa4 {[%clk 0:02:08.2]} 27. Kf2 {[%clk 0:00:32.2]} 27...
Qxa6 {[%clk 0:02:06.4]} 28. Rb2 {[%clk 0:00:27.9]} 28... Qc4 {[%clk 0:02:03.3]}
29. Be3 {[%clk 0:00:23.1]} 29... Rxe3 {[%clk 0:02:01.9]} 30. Kxe3 {[%clk
0:00:24]} 30... Qc3+ {[%clk 0:02:02.1]} 0-1

[Event "*** Titled Tuesday Blitz"]
[Site "Chess.com"]
[Date "2021.03.30"]
[Round "8"]
[White "Larciano"]
[Black "KNVB"]
[Result "0-1"]
[WhiteElo "1961"]
[BlackElo "2634"]
[TimeControl "180+1"]
[EndTime "11:26:29 PDT"]
[Termination "KNVB won by resignation"]

1. e4 {[%clk 0:03:00.9]} 1... c6 {[%clk 0:02:59.3]} 2. d4 {[%clk 0:03:00.4]}
2... d5 {[%clk 0:03:00.2]} 3. exd5 {[%clk 0:03:00.6]} 3... cxd5 {[%clk
0:03:01.1]} 4. Bd3 {[%clk 0:03:00.8]} 4... Nc6 {[%clk 0:03:01.1]} 5. c3 {[%clk
0:03:00.9]} 5... Nf6 {[%clk 0:03:01.1]} 6. h3 {[%clk 0:03:00.9]} 6... g6 {[%clk
0:03:01.7]} 7. Nf3 {[%clk 0:03:01]} 7... Bf5 {[%clk 0:03:02.3]} 8. Be2 {[%clk
0:02:59.6]} 8... Bg7 {[%clk 0:03:02]} 9. O-O {[%clk 0:02:59.5]} 9... O-O {[%clk
0:03:02.7]} 10. Re1 {[%clk 0:02:59.6]} 10... Ne4 {[%clk 0:03:02.7]} 11. Bf4
{[%clk 0:02:56.3]} 11... Qb6 {[%clk 0:03:01.4]} 12. Qb3 {[%clk 0:02:47.3]} 12...
Qxb3 {[%clk 0:03:01.2]} 13. axb3 {[%clk 0:02:46.7]} 13... f6 {[%clk 0:03:02.1]}
14. Nbd2 {[%clk 0:02:41.8]} 14... e5 {[%clk 0:03:02]} 15. dxe5 {[%clk 0:02:36]}
15... fxe5 {[%clk 0:03:02.9]} 16. Bh2 {[%clk 0:02:35.9]} 16... Nxd2 {[%clk
0:02:03.2]} 17. Nxd2 {[%clk 0:02:34.8]} 17... e4 {[%clk 0:02:04.1]} 18. Nf1
{[%clk 0:02:23.9]} 18... d4 {[%clk 0:02:02.9]} 19. cxd4 {[%clk 0:02:12.1]} 19...
Nxd4 {[%clk 0:02:03.8]} 20. Bc4+ {[%clk 0:02:11.9]} 20... Kh8 {[%clk 0:02:04.4]}
21. Ne3 {[%clk 0:02:11.2]} 21... b5 {[%clk 0:02:05]} 22. Nxf5 {[%clk 0:01:58]}
22... gxf5 {[%clk 0:02:03.7]} 23. Bf1 {[%clk 0:01:56.7]} 23... Nc2 {[%clk
0:02:01.6]} 24. Reb1 {[%clk 0:01:51]} 24... Nxa1 {[%clk 0:01:58.2]} 25. Rxa1
{[%clk 0:01:51.1]} 25... a6 {[%clk 0:01:58]} 26. Bd6 {[%clk 0:01:45.4]} 26...
Rfd8 {[%clk 0:01:57.8]} 27. Ba3 {[%clk 0:01:45.1]} 27... Rd2 {[%clk 0:01:51.7]}
28. Rc1 {[%clk 0:01:33.4]} 28... Bxb2 {[%clk 0:01:42.5]} 29. Bxb2+ {[%clk
0:01:32.7]} 29... Rxb2 {[%clk 0:01:43.4]} 30. Rc5 {[%clk 0:01:33]} 30... Rxb3
{[%clk 0:01:39.7]} 31. Rxf5 {[%clk 0:01:32.1]} 31... a5 {[%clk 0:01:40.3]} 32.
Bxb5 {[%clk 0:01:28.4]} 32... a4 {[%clk 0:01:40.2]} 33. Re5 {[%clk 0:01:28]}
33... a3 {[%clk 0:01:36.4]} 34. Bc6 {[%clk 0:01:22.3]} 34... a2 {[%clk
0:01:35.2]} 35. Bxa8 {[%clk 0:01:21.5]} 35... a1=Q+ {[%clk 0:01:35.8]} 36. Kh2
{[%clk 0:01:21.4]} 36... Qxe5+ {[%clk 0:01:36.6]} 0-1

[Event "*** Titled Tuesday Blitz"]
[Site "Chess.com"]
[Date "2021.03.30"]
[Round "8"]
[White "LileKoridze"]
[Black "Leo_C"]
[Result "0-1"]
[WhiteElo "2493"]
[BlackElo "2387"]
[TimeControl "180+1"]
[EndTime "11:26:38 PDT"]
[Termination "Leo_C won by checkmate"]

1. d4 {[%clk 0:03:00.9]} 1... d5 {[%clk 0:02:59.6]} 2. c4 {[%clk 0:03:00.9]}
2... e6 {[%clk 0:02:59.5]} 3. Nc3 {[%clk 0:03:00.4]} 3... c6 {[%clk 0:02:59.8]}
4. e3 {[%clk 0:02:59.1]} 4... Nf6 {[%clk 0:02:58.9]} 5. Nf3 {[%clk 0:02:58.2]}
5... Nbd7 {[%clk 0:02:58.9]} 6. Bd3 {[%clk 0:02:57.8]} 6... dxc4 {[%clk
0:02:58.5]} 7. Bxc4 {[%clk 0:02:57.5]} 7... b5 {[%clk 0:02:59.2]} 8. Bd3 {[%clk
0:02:56.5]} 8... Bd6 {[%clk 0:02:59.7]} 9. O-O {[%clk 0:02:52.8]} 9... O-O
{[%clk 0:02:58.6]} 10. e4 {[%clk 0:02:48.2]} 10... e5 {[%clk 0:02:58.5]} 11. Bg5
{[%clk 0:02:34.5]} 11... h6 {[%clk 0:02:57.8]} 12. Bh4 {[%clk 0:02:33.7]} 12...
Bb7 {[%clk 0:02:57.3]} 13. dxe5 {[%clk 0:02:27.4]} 13... Nxe5 {[%clk 0:02:56]}
14. Nxe5 {[%clk 0:02:27.1]} 14... Bxe5 {[%clk 0:02:55.9]} 15. Qe2 {[%clk
0:02:27.5]} 15... Qb6 {[%clk 0:02:26.8]} 16. Kh1 {[%clk 0:02:25.6]} 16... Rfe8
{[%clk 0:02:20]} 17. f4 {[%clk 0:02:24.8]} 17... Bxc3 {[%clk 0:02:16.4]} 18.
bxc3 {[%clk 0:02:23.7]} 18... Nxe4 {[%clk 0:02:13]} 19. Bxe4 {[%clk 0:02:19.2]}
19... c5 {[%clk 0:02:02.5]} 20. Bxb7 {[%clk 0:02:07.8]} 20... Rxe2 {[%clk
0:02:01.7]} 21. Bxa8 {[%clk 0:02:07.7]} 21... a5 {[%clk 0:01:41.4]} 22. Rad1
{[%clk 0:01:43.4]} 22... Kh7 {[%clk 0:01:26]} 23. Bf3 {[%clk 0:01:32]} 23...
Rxa2 {[%clk 0:01:18.4]} 24. Be4+ {[%clk 0:01:31]} 24... g6 {[%clk 0:01:17.3]}
25. Bd5 {[%clk 0:01:27.8]} 25... c4 {[%clk 0:01:11]} 26. Bxf7 {[%clk 0:01:27.1]}
26... Qb7 {[%clk 0:00:46.9]} 27. Be8 {[%clk 0:01:24.7]} 27... Qxg2# {[%clk
0:00:46]} 0-1

[Event "*** Titled Tuesday Blitz"]
[Site "Chess.com"]
[Date "2021.03.30"]
[Round "8"]
[White "MasterMK73"]
[Black "annacramling"]
[Result "1-0"]
[WhiteElo "2266"]
[BlackElo "2085"]
[TimeControl "180+1"]
[EndTime "11:26:42 PDT"]
[Termination "MasterMK73 won by resignation"]

1. e4 {[%clk 0:03:00.9]} 1... c5 {[%clk 0:02:58.1]} 2. Nf3 {[%clk 0:02:58]} 2...
e6 {[%clk 0:02:52.4]} 3. c4 {[%clk 0:02:56.1]} 3... Nc6 {[%clk 0:02:52.4]} 4.
Nc3 {[%clk 0:02:52.8]} 4... d6 {[%clk 0:02:51.3]} 5. d4 {[%clk 0:02:51]} 5...
cxd4 {[%clk 0:02:52.2]} 6. Nxd4 {[%clk 0:02:51.1]} 6... Nf6 {[%clk 0:02:51.8]}
7. Be2 {[%clk 0:02:50.5]} 7... Be7 {[%clk 0:02:49.6]} 8. Be3 {[%clk 0:02:50.3]}
8... O-O {[%clk 0:02:48.2]} 9. O-O {[%clk 0:02:49.9]} 9... Bd7 {[%clk
0:02:45.9]} 10. f4 {[%clk 0:02:46.7]} 10... Rc8 {[%clk 0:02:43.4]} 11. Rc1
{[%clk 0:02:33.3]} 11... Nxd4 {[%clk 0:02:31.7]} 12. Bxd4 {[%clk 0:02:33.2]}
12... Bc6 {[%clk 0:02:32.6]} 13. Bf3 {[%clk 0:02:32.5]} 13... Nd7 {[%clk
0:02:27.1]} 14. Qe2 {[%clk 0:02:22.6]} 14... Qc7 {[%clk 0:02:15.3]} 15. Be3
{[%clk 0:02:04]} 15... Nc5 {[%clk 0:02:13.5]} 16. b4 {[%clk 0:01:57.5]} 16...
Nd7 {[%clk 0:01:59.8]} 17. b5 {[%clk 0:01:48.8]} 17... Nc5 {[%clk 0:01:40.2]}
18. bxc6 {[%clk 0:01:46.7]} 18... Qxc6 {[%clk 0:01:33.6]} 19. Rfd1 {[%clk
0:01:38.9]} 19... Rfd8 {[%clk 0:01:27.7]} 20. Nb5 {[%clk 0:01:26.7]} 20... Nxe4
{[%clk 0:01:11.6]} 21. Nxa7 {[%clk 0:01:23.1]} 21... Qa4 {[%clk 0:00:46.3]} 22.
Nxc8 {[%clk 0:01:21]} 22... Rxc8 {[%clk 0:00:41.5]} 23. Bxe4 {[%clk 0:01:20.3]}
1-0

[Event "*** Titled Tuesday Blitz"]
[Site "Chess.com"]
[Date "2021.03.30"]
[Round "8"]
[White "Agoking701"]
[Black "J36225"]
[Result "1-0"]
[WhiteElo "2332"]
[BlackElo "2466"]
[TimeControl "180+1"]
[EndTime "11:26:44 PDT"]
[Termination "Agoking701 won by resignation"]

1. e4 {[%clk 0:03:00.6]} 1... e5 {[%clk 0:02:59.8]} 2. Nf3 {[%clk 0:02:58.4]}
2... Nc6 {[%clk 0:02:59.4]} 3. Bb5 {[%clk 0:02:58.2]} 3... a6 {[%clk 0:02:58.9]}
4. Ba4 {[%clk 0:02:56.7]} 4... Nf6 {[%clk 0:02:58.7]} 5. d3 {[%clk 0:02:54.4]}
5... Bc5 {[%clk 0:02:56.6]} 6. O-O {[%clk 0:02:42.5]} 6... b5 {[%clk 0:02:53.2]}
7. Bb3 {[%clk 0:02:42.1]} 7... O-O {[%clk 0:02:53.3]} 8. a4 {[%clk 0:02:37.9]}
8... Bb7 {[%clk 0:02:48.6]} 9. Bg5 {[%clk 0:02:28.7]} 9... h6 {[%clk 0:02:44.2]}
10. Bh4 {[%clk 0:02:27.4]} 10... Be7 {[%clk 0:02:42.1]} 11. Nc3 {[%clk
0:02:24.6]} 11... b4 {[%clk 0:02:35.5]} 12. Ne2 {[%clk 0:02:24.3]} 12... d6
{[%clk 0:02:32.8]} 13. a5 {[%clk 0:02:12.3]} 13... Nh5 {[%clk 0:02:18.9]} 14.
Bg3 {[%clk 0:02:01.6]} 14... Nxg3 {[%clk 0:02:16.1]} 15. Nxg3 {[%clk 0:02:00.4]}
15... g6 {[%clk 0:02:09.6]} 16. Bd5 {[%clk 0:01:58.1]} 16... Kg7 {[%clk
0:02:06.8]} 17. Re1 {[%clk 0:01:55.9]} 17... Qd7 {[%clk 0:02:06.1]} 18. d4
{[%clk 0:01:51.8]} 18... exd4 {[%clk 0:01:54.9]} 19. Nxd4 {[%clk 0:01:39]} 19...
Rab8 {[%clk 0:01:51.3]} 20. Ngf5+ {[%clk 0:01:07.6]} 20... gxf5 {[%clk
0:01:44.8]} 21. Nxf5+ {[%clk 0:01:08.5]} 21... Kf6 {[%clk 0:01:12.8]} 22. Qh5
{[%clk 0:00:54]} 22... Ne5 {[%clk 0:01:08.8]} 23. Qh4+ {[%clk 0:00:50.4]} 1-0

[Event "*** Titled Tuesday Blitz"]
[Site "Chess.com"]
[Date "2021.03.30"]
[Round "8"]
[White "DrCeltic"]
[Black "kamilianin235"]
[Result "0-1"]
[WhiteElo "2418"]
[BlackElo "2283"]
[TimeControl "180+1"]
[EndTime "11:26:49 PDT"]
[Termination "kamilianin235 won by resignation"]

1. e4 {[%clk 0:03:00.9]} 1... c5 {[%clk 0:03:00.4]} 2. Nf3 {[%clk 0:03:00.6]}
2... d6 {[%clk 0:03:00.6]} 3. d4 {[%clk 0:03:00.8]} 3... cxd4 {[%clk 0:03:01.5]}
4. Nxd4 {[%clk 0:03:01.7]} 4... Nf6 {[%clk 0:03:01.2]} 5. Nc3 {[%clk 0:03:02.1]}
5... Nc6 {[%clk 0:03:00.2]} 6. Bc4 {[%clk 0:03:01.3]} 6... e6 {[%clk 0:02:59.2]}
7. Be3 {[%clk 0:03:01.4]} 7... Be7 {[%clk 0:02:54.2]} 8. Qe2 {[%clk 0:03:00.9]}
8... a6 {[%clk 0:02:51.5]} 9. O-O-O {[%clk 0:03:00.8]} 9... Qc7 {[%clk
0:02:50.6]} 10. Bb3 {[%clk 0:03:00.6]} 10... O-O {[%clk 0:02:49.4]} 11. Rhg1
{[%clk 0:02:59.9]} 11... b5 {[%clk 0:02:42.3]} 12. Nxc6 {[%clk 0:02:55.2]} 12...
Qxc6 {[%clk 0:02:40.9]} 13. g4 {[%clk 0:02:47.1]} 13... Bb7 {[%clk 0:02:35.7]}
14. Nd5 {[%clk 0:02:36.7]} 14... exd5 {[%clk 0:02:23.7]} 15. g5 {[%clk
0:02:36.8]} 15... Nxe4 {[%clk 0:02:01.4]} 16. f3 {[%clk 0:02:12.1]} 16... Nc5
{[%clk 0:01:56.4]} 17. Bxc5 {[%clk 0:02:04.9]} 17... dxc5 {[%clk 0:01:45.1]} 18.
Bxd5 {[%clk 0:01:52.7]} 18... Qc7 {[%clk 0:01:35.6]} 19. g6 {[%clk 0:01:41.8]}
19... hxg6 {[%clk 0:01:28.9]} 20. Rxg6 {[%clk 0:01:24.1]} 20... Qf4+ {[%clk
0:01:09.9]} 21. Kb1 {[%clk 0:01:21.3]} 21... Bxd5 {[%clk 0:01:04.8]} 22. Rg3
{[%clk 0:01:02.6]} 22... Be6 {[%clk 0:00:53.8]} 23. Rdg1 {[%clk 0:01:01.4]}
23... Bf6 {[%clk 0:00:52.2]} 0-1